[Event "Bangabandhu Premier Div League 2023-24"]
[Site "Dhaka"]
[Date "2024.02.11"]
[Round "11.6"]
[White "Rahman, Syed Mahfuzur"]
[Black "Mrittika Mallick"]
[Result "1/2-1/2"]
[ECO "D31"]
[WhiteElo "2087"]
[BlackElo "1859"]
[Annotator "NA RC"]
[PlyCount "67"]
[EventDate "2024.02.01"]
[EventCountry "BAN"]
[SourceTitle "playchess.com"]
[Source "ChessBase"]
[SourceQuality "1"]
[TimeControl "40/5400+30:1800+30"]

1. c4 {[%emt 0:00:30]} c6 {[%emt 0:00:30]} 2. e4 {[%emt 0:00:30]} e6 {[%emt 0:00:30]} 3. Nc3 {[%emt 0:00:30]} d5 {[%emt 0:00:30]} 4. d4 {[%emt 0:17:47]} dxe4 {[%emt 0:07:19]} 5. Nxe4 {[%emt 0:00:05]} Bb4+ {[%emt 0:00:45]} 6. Bd2 {[%emt 0:00:20]} Bxd2+ {[%emt 0:01:01]} 7. Qxd2 {[%emt 0:00:32]} Nf6 {[%emt 0:00:12]} 8. Nxf6+ {[%emt 0:08:23]} Qxf6 {[%emt 0:00:07]} 9. Nf3 {[%emt 0:00:02]} O-O {[%emt 0:00:27]} 10. Bd3 {[%emt 0:00:21]} Nd7 {[%emt 0:02:17]} 11. O-O {[%emt 0:04:35]} c5 {[%emt 0:05:11]} 12. Qe3 {[%emt 0:17:10]} cxd4 {[%emt 0:00:52]} 13. Qxd4 {[%emt 0:00:12]} Qxd4 {[%emt 0:02:37]} 14. Nxd4 {[%emt 0:00:03]} Nc5 {[%emt 0:00:13]} 15. Be2 {[%emt 0:00:24]} a5 {[%emt 0:01:33]} 16. Rfd1 {[%emt 0:01:18]} e5 {[%emt 0:10:26]} 17. Nb5 {[%emt 0:10:09]} Be6 {[%emt 0:00:43]} 18. b3 {[%emt 0:00:30]} Rad8 {[%emt 0:00:30]} 19. Kf1 {[%emt 0:03:20]} f5 {[%emt 0:06:53]} 20. Ke1 {[%emt 0:04:10]} f4 {[%emt 0:05:02]} 21. Rxd8 {[%emt 0:00:30]} Rxd8 {[%emt 0:00:30]} 22. Rd1 {[%emt 0:00:30]} Rxd1+ {[%emt 0:00:30]} 23. Kxd1 {[%emt 0:00:00]} Bf5 {[%emt 0:03:21]} 24. f3 {[%emt 0:04:14]} Kf8 {[%emt 0:01:10]} 25. Kd2 {[%emt 0:00:50]} Ke7 {[%emt 0:03:47]} 26. Bd1 {[%emt 0:00:30]} g5 {[%emt 0:00:30]} 27. a3 {[%emt 0:00:30]} Bg6 {[%emt 0:00:30]} 28. b4 {[%emt 0:13:02]} axb4 {[%emt 0:14:10]} 29. axb4 {[%emt 0:00:30]} Nd3 {[%emt 0:00:30]} 30. Bc2 {[%emt 0:04:20]} Nxb4 {[%emt 0:07:58]} 31. Bxg6 {[%emt 0:00:07]} hxg6 {[%emt 0:00:05]} 32. Nc3 {[%emt 0:00:12]} Nc6 {[%emt 0:02:31]} 33. Ne4 {[%emt 0:00:22]} Nd4 {[%emt 0:00:08]} 34. Nxg5 {[%emt 0:00:40]} 1/2-1/2

[Event "Bangabandhu Premier Div League 2023-24"]
[Site "Dhaka"]
[Date "2024.02.11"]
[Round "11.7"]
[White "Tanvir, Alam"]
[Black "Mihir Lal, Das"]
[Result "0-1"]
[ECO "D85"]
[WhiteElo "1836"]
[BlackElo "1936"]
[Annotator "NA RC"]
[PlyCount "86"]
[EventDate "2024.02.01"]
[EventCountry "BAN"]
[SourceTitle "playchess.com"]
[Source "ChessBase"]
[SourceQuality "1"]
[TimeControl "40/5400+30:1800+30"]

1. d4 {[%emt 0:00:30]} Nf6 {[%emt 0:00:30]} 2. c4 {[%emt 0:00:30]} g6 {[%emt 0:00:30]} 3. Nc3 {[%emt 0:00:30]} d5 {[%emt 0:00:30]} 4. cxd5 {[%emt 0:00:30]} Nxd5 {[%emt 0:00:30]} 5. e4 {[%emt 0:00:30]} Nxc3 {[%emt 0:00:30]} 6. bxc3 {[%emt 0:00:30]} Bg7 {[%emt 0:00:30]} 7. Nf3 {[%emt 0:00:30]} c5 {[%emt 0:00:30]} 8. Bb5+ {[%emt 0:00:30]} Nc6 {[%emt 0:00:30]} 9. O-O {[%emt 0:09:08]} O-O {[%emt 0:00:00]} 10. Be3 {[%emt 0:06:31]} cxd4 {[%emt 0:00:00]} 11. cxd4 {[%emt 0:00:27]} Bd7 {[%emt 0:05:54]} 12. h3 {[%emt 0:02:27]} Nxd4 {[%emt 0:08:39]} 13. Bxd7 {[%emt 0:18:40]} Nxf3+ {[%emt 0:00:34]} 14. gxf3 {[%emt 0:00:01]} Bxa1 {[%emt 0:00:19]} 15. Qxa1 {[%emt 0:00:05]} Qxd7 {[%emt 0:00:15]} 16. Bh6 {[%emt 0:00:04]} f6 {[%emt 0:01:02]} 17. Bxf8 {[%emt 0:00:06]} Kxf8 {[%emt 0:00:16]} 18. Kg2 {[%emt 0:00:46]} Qd2 {[%emt 0:14:06]} 19. Rd1 {[%emt 0:02:48]} Qg5+ {[%emt 0:05:41]} 20. Kh1 {[%emt 0:03:43]} Rc8 {[%emt 0:06:46]} 21. Qb1 {[%emt 0:00:33]} b6 {[%emt 0:00:33]} 22. Qb3 {[%emt 0:04:24]} Kg7 {[%emt 0:16:16]} 23. Qe6 {[%emt 0:05:25]} Rc7 {[%emt 0:00:22]} 24. a4 {[%emt 0:06:56]} Qe5 {[%emt 0:09:45]} 25. Qa2 {[%emt 0:07:55]} Qf4 {[%emt 0:06:23]} 26. Kg2 {[%emt 0:02:23]} Qg5+ {[%emt 0:05:19]} 27. Kf1 {[%emt 0:03:33]} Qc5 {[%emt 0:03:29]} 28. Rd5 {[%emt 0:02:40]} Qc4+ {[%emt 0:01:27]} 29. Qxc4 {[%emt 0:01:48]} Rxc4 {[%emt 0:00:03]} 30. a5 {[%emt 0:00:12]} Rc5 {[%emt 0:03:35]} 31. Rxc5 {[%emt 0:06:54]} bxc5 {[%emt 0:00:02]} 32. Ke2 {[%emt 0:00:08]} Kf7 {[%emt 0:00:20]} 33. Kd3 {[%emt 0:00:09]} Ke6 {[%emt 0:00:11]} 34. Kc4 {[%emt 0:00:04]} Kd6 {[%emt 0:00:58]} 35. f4 {[%emt 0:00:24]} e5 {[%emt 0:05:42]} 36. f5 {[%emt 0:03:16]} g5 {[%emt 0:01:52]} 37. Kb3 {[%emt 0:07:17]} Kc6 {[%emt 0:00:53]} 38. Kc4 {[%emt 0:01:57]} a6 {[%emt 0:00:13]} 39. f3 {[%emt 0:00:28]} h6 {[%emt 0:00:27]} 40. Kd3 {[%emt 0:03:50]} Kb5 {[%emt 0:00:03]} 41. Kc3 {[%emt 0:30:18]} c4 {[%emt 0:30:07]} 42. h4 {[%emt 0:00:36]} Kc5 {[%emt 0:01:24]} 43. h5 {[%emt 0:00:00]} Kb5 {[%emt 0:00:00]} 0-1

[Event "Bangabandhu Premier Div League 2023-24"]
[Site "Dhaka"]
[Date "2024.02.11"]
[Round "11.7"]
[White "Tashriq Saihan, Shan"]
[Black "Iniyan, Pa"]
[Result "1/2-1/2"]
[ECO "B96"]
[WhiteElo "1772"]
[BlackElo "2515"]
[Annotator "TA"]
[PlyCount "60"]
[EventDate "2024.02.01"]
[EventCountry "BAN"]
[SourceTitle "playchess.com"]
[Source "ChessBase"]
[SourceQuality "1"]
[TimeControl "40/5400+30:1800+30"]

{[%evp 15,60,64,67,39,65,20,54,50,53,32,38,48,66,60,85,55,72,83,137,174,163,146,146,0,0,0,0,0,0,0,0,0,0,0,29,27,28,28,30,22,22,-75,0,0,29,-67,0]} 1. e4 {[%emt 0:00:05]} c5 {[%emt 0:00:14]} 2. Nf3 {[%emt 0:00:30]} d6 {[%emt 0:00:30]} 3. d4 {[%emt 0:00:30]} cxd4 {[%emt 0:00:30]} 4. Nxd4 {[%emt 0:00:30]} Nf6 {[%emt 0:00:30]} 5. Nc3 {[%emt 0:00:30]} a6 {[%emt 0:00:30]} 6. Bg5 {[%emt 0:00:30]} e6 {[%emt 0:00:30]} 7. f4 {[%emt 0:00:30]} Qc7 {[%emt 0:00:30]} 8. Bxf6 {[%emt 0:00:30]} gxf6 9. Qd3 {White is more active.} b5 {[%emt 0:02:29][%cal Bb7b5,Bb5b4][%mdl 32]} 10. O-O-O {[%emt 0:07:01]} Nd7 {[%emt 0:00:18]} 11. Qh3 {[%emt 0:04:02] White is slightly better.} Nb6 {[%emt 0:08:54]} 12. Bd3 {[%emt 0:10:50]} b4 {[%emt 0:01:43]} 13. Nce2 {[%emt 0:01:42]} h5 {[%emt 0:00:37][%cal Bh7h5,Bh5h4][%mdl 32]} 14. Kb1 {[%emt 0:01:22]} Bd7 {[%emt 0:00:26]} 15. Rhe1 {[%emt 1:09:28]} Na4 {[%emt 1:20:19]} 16. Qf3 {[%emt 0:00:30][%cal Oe4e5]} Nb6 {[%emt 0:00:30]} (16... Qb6 $142) 17. Ng3 $16 {[%emt 0:00:30]} h4 {[%emt 0:00:30]} 18. Nh5 {[%emt 0:00:30]} Rh6 {[%emt 0:00:30] [#]} 19. e5 {[%emt 0:00:30]} fxe5 $11 {[%emt 0:00:30]} 20. fxe5 {[%emt 0:00:00]} dxe5 {[%emt 0:00:30]} 21. Nf6+ {[%emt 0:00:00]} Rxf6 $1 {[%emt 0:00:00]} 22. Qxf6 {[%emt 0:00:00][%cal Od3g6] White threatens Bg6! and mate.} exd4 {[%emt 0:01:00]} 23. Rf1 {[%emt 0:00:00]} Bb5 {[%emt 0:00:30] ...Bxd3 would now be deadly.} (23... Qxh2 24. Qxf7+ Kd8 25. Qxf8+ Kc7 26. Qc5+ (26. Qxb4 Qe5 $18) 26... Bc6 27. Rf7+ (27. Qxb4 Qd6 $18) (27. Qxd4 Rd8 $18) 27... Nd7 28. Rxd7+ (28. Qxb4 Qd6 $18) 28... Kxd7 29. Rf1 $18 (29. Qxd4+ Kc7 $18) (29. Qxb4 Qd6 $16) (29. Qxd4+ Kc7 $18) (29. Qxb4 Qd6 $14)) 24. Bg6 {[%emt 0:02:30][%cal Rg6f7] Chess con chili.} Qe7 {[%emt 0:00:30][%cal Ob5f1]} (24... Qxh2 25. Qxe6+ (25. Bxf7+ Kd7 $18) (25. Rxd4 Bd6 $18) 25... Kd8 26. Qxb6+ Qc7 27. Rxd4+ Bd7 28. Rxd7+ Kxd7 29. Bf5+ (29. Rxf7+ Be7 30. Rxe7+ Kxe7 31. Qxc7+ Kf6 32. Qf7+ Ke5 33. Qe7+ Kd4 34. Qe4+ Kc5 $18) 29... Kd8 30. Rd1+) 25. Bxf7+ {[%emt 0:00:00]} Kd7 {[%emt 0:00:30]} 26. Qxd4+ {[%emt 0:00:00]} (26. Rxd4+ Nd5 27. Qxe7+ Kxe7 $19) 26... Kc7 {[%emt 0:00:00][%cal Oe6e5] ...e5! is the strong threat.} 27. Qe5+ {[%emt 0:00:00][%mdl 1024] White has compensation.} Kb7 {[%emt 0:01:00]} 28. Qe4+ {[%emt 0:00:00] [#]} (28. Rf4 $11 {keeps the balance.}) 28... Kc7 {[%emt 0:00:00]} (28... Ka7 $1 $17 29. Rf2 Qc5) 29. Qe5+ {[%emt 0:00:00]} Kb7 {[%emt 0:00:00]} 30. Qe4+ {[%emt 0:00:00]} ({White should try} 30. Rf4 $11) 30... Kc7 {[%emt 0:01:30] Weighted Error Value: White=0.26 (precise) /Black=0.14 (very precise) .  Mistake:       	White=3     	Black=3      Inaccurate:     	White=2     	Black=3      OK:         	White=10    	Black=4      Best:        	White=1     	Black=4      Strong:       	---       	Black=1} (30... Ka7 $1 $15 31. Rf2 Qc5) 1/2-1/2

[Event "Bangabandhu Premier Div League 2023-24"]
[Site "Dhaka"]
[Date "2024.02.11"]
[Round "11.8"]
[White "Anata, Choudhury"]
[Black "Muhimenul, Islam"]
[Result "1-0"]
[ECO "B33"]
[WhiteElo "2196"]
[BlackElo "1970"]
[Annotator "NA RC"]
[PlyCount "55"]
[EventDate "2024.02.01"]
[EventCountry "BAN"]
[SourceTitle "playchess.com"]
[Source "ChessBase"]
[SourceQuality "1"]
[TimeControl "40/5400+30:1800+30"]

1. e4 {[%emt 0:00:30]} c5 {[%emt 0:00:30]} 2. Nf3 {[%emt 0:00:30]} Nc6 {[%emt 0:00:30]} 3. d4 {[%emt 0:00:30]} cxd4 {[%emt 0:00:30]} 4. Nxd4 {[%emt 0:00:30]} Nf6 {[%emt 0:00:30]} 5. Nc3 {[%emt 0:00:30]} e5 {[%emt 0:00:30]} 6. Ndb5 {[%emt 0:00:30]} d6 {[%emt 0:00:30]} 7. a4 {[%emt 0:00:30]} Be7 {[%emt 0:00:30]} 8. Bg5 {[%emt 0:00:30]} a6 {[%emt 0:05:21]} 9. Na3 {[%emt 0:00:21]} O-O {[%emt 0:02:00]} 10. Bxf6 {[%emt 0:00:39]} Bxf6 {[%emt 0:00:32]} 11. Nc4 {[%emt 0:00:18]} Be7 {[%emt 0:02:00]} 12. Nd5 {[%emt 0:00:20]} f5 {[%emt 0:06:52]} 13. Ncb6 {[%emt 1:31:22]} Rb8 {[%emt 0:04:11]} 14. Bd3 {[%emt 0:00:30]} Nb4 {[%emt 1:13:04]} 15. Nxc8 {[%emt 0:00:00]} Nxd3+ {[%emt 0:00:30]} 16. Qxd3 {[%emt 0:01:00]} Rxc8 {[%emt 0:00:00]} 17. exf5 {[%emt 0:00:30]} Bf6 {[%emt 0:00:00]} 18. O-O {[%emt 0:00:00]} Rc6 {[%emt 0:01:30]} 19. c3 {[%emt 0:00:00]} Qd7 {[%emt 0:00:30]} 20. f4 {[%emt 0:00:00]} Kh8 {[%emt 0:00:00]} 21. Rad1 {[%emt 0:00:00]} Rd8 {[%emt 0:00:00]} 22. g4 {[%emt 0:00:00]} exf4 {[%emt 0:00:00]} 23. Nxf4 {[%emt 0:00:00]} Be5 {[%emt 0:02:00]} 24. Ng6+ {[%emt 0:03:30]} hxg6 {[%emt 0:00:00]} 25. Qh3+ {[%emt 0:00:00]} Kg8 {[%emt 0:00:00]} 26. fxg6 {[%emt 0:01:00]} Bf6 {[%emt 0:00:00]} 27. Qh7+ {[%emt 0:00:00]} Kf8 {[%emt 0:00:00]} 28. Rxf6+ {[%emt 0:00:00]} 1-0

[Event "Bangabandhu Premier Div League 2023-24"]
[Site "Dhaka"]
[Date "2024.02.11"]
[Round "11.9"]
[White "Pranav Vijay"]
[Black "Zia, Tahsin Tajwar"]
[Result "1-0"]
[ECO "B12"]
[WhiteElo "2252"]
[BlackElo "2275"]
[Annotator "NA RC"]
[PlyCount "57"]
[EventDate "2024.02.01"]
[EventCountry "BAN"]
[SourceTitle "playchess.com"]
[Source "ChessBase"]
[SourceQuality "1"]
[TimeControl "40/5400+30:1800+30"]

1. e4 {[%emt 0:00:03]} c6 {[%emt 0:01:32]} 2. d4 {[%emt 0:00:30]} d5 {[%emt 0:00:30]} 3. e5 {[%emt 0:00:30]} Bf5 {[%emt 0:00:30]} 4. Nf3 {[%emt 0:00:30]} e6 {[%emt 0:00:30]} 5. Be2 {[%emt 0:00:30]} Nd7 {[%emt 0:00:30]} 6. O-O {[%emt 0:00:30]} a5 {[%emt 0:00:30]} 7. a4 {[%emt 0:00:30]} f6 {[%emt 0:00:30]} 8. Nbd2 {[%emt 0:00:30]} fxe5 {[%emt 0:00:30]} 9. dxe5 {[%emt 0:00:30]} Bc5 {[%emt 0:00:30]} 10. Nb3 Ba7 11. Bd2 {[%emt 0:27:12]} Ne7 {[%emt 0:02:51]} 12. Bxa5 {[%emt 0:02:19]} Qb8 {[%emt 0:00:37]} 13. Bc3 {[%emt 0:02:06]} O-O {[%emt 1:28:00]} 14. Nbd4 {[%emt 1:01:50]} Bxd4 {[%emt 0:00:00]} 15. Nxd4 {[%emt 0:00:00]} c5 {[%emt 0:00:00]} 16. Nxf5 {[%emt 0:00:00]} Nxf5 {[%emt 0:00:00]} 17. g4 {[%emt 0:01:30]} Ne7 {[%emt 0:00:00]} 18. f4 {[%emt 0:00:00]} Qc7 {[%emt 0:00:00]} 19. Bb5 {[%emt 0:01:00]} d4 {[%emt 0:00:00]} 20. Bd2 {[%emt 0:00:00]} Nd5 {[%emt 0:00:00]} 21. Qe2 {[%emt 0:00:00]} Rac8 {[%emt 0:00:00]} 22. Qe4 {[%emt 0:01:30]} c4 {[%emt 0:00:00]} 23. Qxd4 {[%emt 0:00:00]} c3 {[%emt 0:00:00]} 24. Bxc3 {[%emt 0:00:00]} Nxc3 {[%emt 0:00:00]} 25. bxc3 {[%emt 0:00:00]} Nb6 {[%emt 0:06:00]} 26. Qd6 {[%emt 0:00:00]} Kh8 {[%emt 0:00:00]} 27. Qxc7 {[%emt 0:00:00]} Rxc7 {[%emt 0:00:00]} 28. f5 {[%emt 0:00:00]} exf5 {[%emt 0:00:00]} 29. Rxf5 {[%emt 0:00:00]} 1-0

[Event "Bangabandhu Premier Div League 2023-24"]
[Site "Dhaka"]
[Date "2024.02.11"]
[Round "11.10"]
[White "Mohammad Fahad, Rahman"]
[Black "Murshed, Niaz"]
[Result "1-0"]
[ECO "B38"]
[WhiteElo "2418"]
[BlackElo "2363"]
[Annotator "TA"]
[PlyCount "83"]
[EventDate "2024.02.01"]
[EventCountry "BAN"]
[SourceTitle "playchess.com"]
[Source "ChessBase"]
[SourceQuality "1"]
[TimeControl "40/5400+30:1800+30"]

{[%evp 20,83,46,34,52,0,86,86,81,77,82,73,97,93,106,86,80,87,87,95,86,62,48,54,54,64,67,65,63,63,70,66,73,60,94,49,64,0,8,8,25,18,128,98,254,253,247,257,249,243,244,243,739,724,885,816,861,814,725,8,652,712,745,710,736,710]} 1. e4 {[%emt 0:00:30]} c5 {[%emt 0:00:30]} 2. Nf3 {[%emt 0:00:30]} Nc6 {[%emt 0:00:30]} 3. d4 {[%emt 0:00:30]} cxd4 {[%emt 0:00:30]} 4. Nxd4 {[%emt 0:00:30]} g6 {[%emt 0:00:30]} 5. c4 {[%emt 0:00:30]} Bg7 {[%emt 0:00:30]} 6. Be3 {[%emt 0:00:30]} Nf6 {[%emt 0:00:30]} 7. Nc3 {[%emt 0:00:30]} O-O {[%emt 0:00:30]} 8. Be2 {[%emt 0:00:30]} d6 {[%emt 1:31:00]} 9. O-O {[%emt 0:06:49]} Bd7 {[%emt 0:00:00]} 10. Qd2 {[%emt 0:04:18]} Nxd4 {[%emt 0:00:00]} 11. Bxd4 {[%emt 0:00:06]} Bc6 {[%emt 0:00:00]} 12. Rfd1 {[%emt 0:04:42]} ({White should try} 12. f3 $14) 12... Nd7 {[%emt 0:00:00]} (12... e5 $11 {remains equal.} 13. Be3 Nxe4 14. Nxe4 Bxe4) 13. Bxg7 $16 {[%emt 0:00:25]} Kxg7 {[%emt 0:00:00] White is better.} 14. b4 {[%emt 0:00:22] b5 would now be deadly.} b6 {[%emt 0:00:00]} 15. f4 {[%emt 1:17:18][%cal Oe4e5]} f6 {[%emt 0:03:30]} 16. Bg4 {[%emt 0:00:30]} a5 {[%emt 0:00:30]} 17. a3 {[%emt 0:00:30]} axb4 {[%emt 0:00:00]} 18. axb4 {[%emt 0:00:00]} Rxa1 {[%emt 0:00:00]} 19. Rxa1 {[%emt 0:00:00]} Qc7 {[%emt 0:01:30] Repels Ra7} 20. h3 {[%emt 0:00:00] White is much more active.} f5 {[%emt 0:00:30]} 21. exf5 {[%emt 0:00:00]} gxf5 {[%emt 0:00:00]} 22. Be2 {[%emt 0:00:00]} Nf6 {[%emt 0:00:00]} 23. Bd3 {[%emt 0:03:00]} e6 {[%emt 0:00:00]} 24. Qe3 {[%emt 0:00:00]} Kf7 {[%emt 0:00:00]} 25. Re1 $36 {[%emt 0:00:00][%cal Ba1e1,Be1e2,Be2d2][%mdl 2080] Black is under pressure.} Re8 {[%emt 0:02:30]} 26. Re2 {[%emt 0:00:00]} Bd7 {[%emt 0:00:00]} 27. Rd2 {[%emt 0:00:00]} (27. g4 {keeps more tension.} Bc6 28. g5 Nh5 29. h4) 27... d5 {[%emt 0:00:00]} 28. Qd4 {[%emt 0:00:00]} (28. Be2 $14) 28... Rc8 {[%emt 0:00:00]} 29. Be2 {[%emt 0:00:00][%cal Bd3e2,Be2h5,Bh5f3,Bf3g2][%mdl 32]} dxc4 {[%emt 0:00:00]} 30. g4 {[%emt 0:03:30][%cal Bg2g4,Bg4f5][%mdl 32]} h6 {[%emt 0:00:00]} (30... fxg4 $1 $11 31. hxg4 h6) 31. gxf5 {[%emt 0:00:30]} Qc6 $2 {[%emt 0:03:00] [#] Inhibits Bf3.} (31... exf5 $16 {keeps fighting.} 32. Qe5 Qxe5 33. fxe5 Be6) 32. Kf2 $1 $18 {[%emt 0:00:00]} Qh1 {[%emt 0:00:00] [#]} 33. Bh5+ $1 {[%emt 0:00:00][%mdl 512]} Kg7 {[%emt 0:00:00] [#]} 34. Bf3 {[%emt 0:01:30] Prevents Bc6.} Qh2+ {[%emt 0:00:00]} 35. Bg2 {[%emt 0:00:00] Strongly threatening Kf1.} Kf7 $2 {[%emt 0:00:00]} (35... exf5 $2 36. Nd5 (36. Qxb6 $2 Qxf4+ 37. Ke2 Qg3 $19) 36... Rg8 37. Nxf6 $18) (35... Re8) 36. Ne4 {[%emt 0:00:00]} (36. Qxb6 Qxf4+ (36... exf5 37. Qd4 $11) 37. Ke2 Qxf5 $11 (37... exf5 $2 38. Qxf6+ Kxf6 39. Nd5+ Kg5 40. Nxf4 $18)) 36... Qxf4+ {[%emt 0:01:26]} 37. Kg1 {[%emt 0:00:00]} e5 {[%emt 0:00:53]} 38. Qxb6 {[%emt 0:00:00]} (38. Nd6+ Kg7 39. Qxf4 (39. Qxb6 $2 Qxd2 40. Nxc8 c3 $19) 39... exf4 40. Nxc8 Bxc8 $18) 38... Bc6 {[%emt 0:00:36]} 39. Nd6+ $2 {[%emt 0:00:00]} (39. Rf2 $18 Qc1+ 40. Rf1) 39... Kg7 $2 {[%emt 0:00:22][%mdl 8192]} (39... Kf8 $11 40. Qa7 (40. Nxc8 Qxd2 41. Qc5+ Kg7 $11) 40... Nd7 41. Bxc6 (41. Nxc8 Qxd2 42. Bxc6 c3 $11) 41... Qxd2 42. Qxd7 (42. Nxc8 c3 $11) 42... Qc1+ 43. Kg2 Qd2+ 44. Kf3 Qd1+ 45. Kg3 Qe1+ 46. Kh2 Qf2+ 47. Bg2 Qf4+ 48. Kg1 Qe3+ 49. Kf1 Qd3+ 50. Ke1 Qg3+ 51. Kf1 Qd3+ 52. Kf2 Qd2+ 53. Kf3 e4+ 54. Kg3 (54. Kxe4 Qxg2+ 55. Ke5 Qg3+ 56. Ke6 Qe3+ 57. Kd5 Qd2+ 58. Ke6 Qe3+ 59. Kf6 Qg5+ 60. Ke6 Qe3+ $11) 54... Qe3+ 55. Kh2 Qf4+ 56. Kg1 Qe3+ 57. Kh2 Qf4+ 58. Kg1 Qe3+ 59. Kf1 Qd3+ 60. Ke1 Qg3+ 61. Ke2 Qd3+ (61... Qxg2+ 62. Ke3 $11) 62. Kf2 Qd2+ 63. Kf1 Qd1+ 64. Kf2 Qd4+ 65. Kg3 Qe3+ 66. Kh2) 40. Rf2 {[%emt 0:02:11] White is clearly winning.} ({Weaker is} 40. Nxc8 Qxd2 41. Bxc6 (41. Qxc6 Qe3+ 42. Kf1 Qd3+ 43. Kg1 Qe3+ 44. Kh2 Qf4+ 45. Kg1 Qe3+ $11) 41... c3 42. Qa7+ (42. Qc7+ Kh8 $11) 42... Kh8 $11) 40... Qc1+ {[%emt 0:00:38]} 41. Kh2 {[%emt 0:01:00][%cal Og2c6]} Nd7 {[%emt 0:31:05]} 42. Qa7 {[%emt 0:04:56] Weighted Error Value: White=0.27 (precise) /Black=0.35.  Mistake:       	White=2     	Black=4      Inaccurate:     	White=1     	Black=1      OK:         	White=10    	Black=11     Best:        	White=3     	Black=2      Strong:       	White=1     	---        Brilliant:      	White=1     	---} ({Worse is} 42. Qa6 Bxg2 43. Rxg2+ (43. Qxc8 $2 {is a self mate.} Qh1+ 44. Kg3 Qxh3#) 43... Kh7 $11) 1-0

[Event "Bangabandhu Premier Div League 2023-24"]
[Site "Dhaka"]
[Date "2024.02.11"]
[Round "11.11"]
[White "Narayanan, Srinath"]
[Black "Puranik, Abhimanyu"]
[Result "1/2-1/2"]
[ECO "E51"]
[WhiteElo "2552"]
[BlackElo "2645"]
[Annotator "TA"]
[PlyCount "77"]
[EventDate "2024.02.01"]
[EventCountry "BAN"]
[SourceTitle "playchess.com"]
[Source "ChessBase"]
[SourceQuality "1"]
[TimeControl "40/5400+30:1800+30"]

{[%evp 11,77,-1,0,3,19,0,2,0,0,-28,-31,-25,-15,-35,-46,-57,-68,-70,-60,-45,-56,-43,-52,-72,-73,-61,-62,-63,-47,-52,-43,-57,-49,-45,-31,-47,-35,-36,-40,-28,-28,-25,-27,-75,-27,-63,-65,-43,-27,-32,-35,-73,-47,-30,-35,-62,-25,-49,-9,-49,-3,-43,0,0,0,0,0,0]} 1. d4 {[%emt 0:00:07]} Nf6 {[%emt 0:00:17]} 2. c4 {[%emt 0:00:30]} e6 {[%emt 0:00:30]} 3. Nf3 {[%emt 0:00:30]} d5 {[%emt 0:00:30]} 4. Nc3 {[%emt 0:00:30]} Bb4 {[%emt 0:00:30]} 5. e3 {[%emt 0:00:30]} O-O {[%emt 0:00:30][%cal Bh8f8,Bf8e8,Be8e6][%mdl 32]} 6. Bd2 {[%emt 0:00:30]} b6 7. Rc1 a5 {[%emt 0:16:04]} 8. cxd5 {[%emt 0:06:34]} exd5 {[%emt 0:01:46]} 9. Ne5 {[%emt 0:00:15]} c5 {[%emt 0:04:19]} 10. dxc5 {[%emt 0:03:11]} Re8 {[%emt 0:06:58]} (10... Bxc5 11. Be2 $11) 11. Nf3 {[%emt 0:07:44]} d4 {[%emt 0:03:00]} ({Of course not} 11... Bxc5 12. Na4 $11) 12. Nb5 {[%emt 0:02:30] [#] Strongly threatening Bxb4.} bxc5 {[%emt 0:04:20]} 13. Bxb4 {[%emt 0:07:18]} axb4 {[%emt 0:00:11]} 14. Bc4 {[%emt 0:01:30]} Be6 {[%emt 0:15:29]} 15. Bxe6 {[%emt 0:14:31]} Rxe6 {[%emt 0:00:07]} 16. O-O {[%emt 0:00:32][%cal Re3d4]} Qb6 {[%emt 0:02:40]} (16... Rxa2 17. exd4 (17. Rxc5 Nbd7 $11) 17... Qd7 18. Rxc5 $18) 17. Nfxd4 {[%emt 0:02:55]} Re8 {[%emt 0:04:25][%cal Oe8d8]} 18. Nf5 {[%emt 0:03:19]} Qxb5 {[%emt 0:37:54]} 19. Nd6 {[%emt 0:00:11][%csl LRb5,LRe8]} Qc6 {[%emt 0:00:00]} 20. Nxe8 {[%emt 0:00:05]} Nxe8 {[%emt 0:00:00]} 21. Qb3 {[%emt 0:01:06]} Na6 {[%emt 0:00:00]} 22. Rfd1 {[%emt 0:04:09]} Rc8 {[%emt 0:00:00]} 23. Qc4 {[%emt 0:09:15]} Nd6 {[%emt 0:00:00]} 24. Qd3 {[%emt 0:00:33]} Nb7 {[%emt 0:00:00]} 25. h4 {[%emt 0:12:31]} h6 {[%emt 0:00:00]} 26. Qf5 {[%emt 0:01:09]} Re8 {[%emt 0:00:00]} 27. Qd3 {[%emt 0:05:51]} (27. Qd7 $11 Rc8 28. Qf5) 27... Nc7 {[%emt 0:00:00]} (27... Re6 $17) 28. a3 {[%emt 0:00:44]} bxa3 $1 {[%emt 0:00:00]} 29. Qxa3 {[%emt 0:00:01]} Ne6 {[%emt 0:00:00]} 30. Qd3 {[%emt 0:05:01]} Qb6 {[%emt 0:00:00]} 31. Rd2 {[%emt 0:02:57]} Qb4 {[%emt 0:00:00][%cal Oe8d8] [#] And now ...Rd8! would win.} 32. Rc4 $1 {[%emt 0:00:24]} Qa5 {[%emt 0:00:00] White must now prevent ...Rd8.} 33. Qc2 {[%emt 0:05:37][%cal Oc2a4]} Ra8 {[%emt 0:00:08]} 34. Rd1 {[%emt 0:00:23]} Qc7 {[%emt 0:02:54]} 35. Rc3 {[%emt 0:01:56]} Qe7 {[%emt 0:01:18]} (35... Nd6 $15) 36. g3 {[%emt 0:00:16]} Rd8 {[%emt 0:02:21]} 37. Rxd8+ {[%emt 0:00:16] The position is equal.} Nbxd8 {[%emt 0:00:03]} 38. Qe4 {[%emt 0:00:52]} h5 {[%emt 0:01:07]} 39. b4 {[%emt 0:01:10] Weighted Error Value: White=0.12 (very precise) /Black=0.12 (very precise) .  Mistake:       	White=1     	Black=2      Inaccurate:     	White=6     	Black=4      OK:         	White=11    	Black=8      Best:        	White=2     	---        Strong:       	White=1     	Black=1} 1/2-1/2